[Event "29. Klatovy A 2023"]
[Site "Klatovy"]
[Date "2023.07.08"]
[Round "8.13"]
[White "Pycha, Patrik"]
[Black "Kishore, Kumar Jaganathan"]
[Result "1/2-1/2"]
[ECO "B26"]
[WhiteElo "2058"]
[BlackElo "1860"]
[PlyCount "125"]
[EventDate "2023.07.01"]
[EventType "swiss"]
[EventRounds "9"]
[EventCountry "CZE"]
[TimeControl "120+30"]

1. e4 {[%emt 20:53:39]} c5 {[%emt 0:02:08]} 2. Nc3 {[%emt 0:00:44]} d6 {[%emt 0:00:22]} 3. g3 {[%emt 0:00:33]} g6 {[%emt 0:00:31]} 4. Bg2 {[%emt 0:00:05]} Bg7 {[%emt 0:00:05]} 5. d3 {[%emt 0:00:06]} Nc6 {[%emt 0:00:12]} 6. Be3 {[%emt 0:00:24]} Rb8 {[%emt 0:00:36]} 7. Qd2 {[%emt 0:03:12]} b5 {[%emt 0:00:13]} 8. Nge2 {[%emt 0:03:13]} b4 {[%emt 0:00:57]} 9. Nd1 {[%emt 0:00:06]} Nd4 {[%emt 0:00:39]} 10. O-O {[%emt 0:00:15]} Qb6 {[%emt 0:00:47]} 11. Nc1 {[%emt 0:00:58]} Nf6 {[%emt 0:00:49]} 12. c3 {[%emt 0:03:49]} Ne6 {[%emt 0:00:06]} 13. Bh6 {[%emt 0:01:13]} bxc3 {[%emt 0:00:30]} 14. bxc3 {[%emt 0:00:06]} Bxh6 {[%emt 0:00:19]} 15. Qxh6 {[%emt 0:00:08]} c4 {[%emt 0:00:04]} 16. dxc4 {[%emt 0:04:43]} Ng4 {[%emt 0:00:17]} 17. Qd2 {[%emt 0:01:01]} Ba6 {[%emt 0:00:06]} 18. Qe2 {[%emt 0:04:33]} Ne5 {[%emt 0:00:06]} 19. Ne3 {[%emt 0:00:44]} Nxc4 {[%emt 0:14:06]} 20. Nxc4 {[%emt 0:00:19]} Qc5 {[%emt 0:00:11]} 21. Nb3 {[%emt 0:06:34]} Bxc4 {[%emt 0:06:56]} 22. Nxc5 {[%emt 0:00:37]} Bxe2 {[%emt 0:00:06]} 23. Rfe1 {[%emt 0:00:08]} Nxc5 {[%emt 0:01:02]} 24. Rxe2 {[%emt 0:00:09]} e5 {[%emt 0:01:40]} 25. Rd2 {[%emt 0:06:51]} Ke7 {[%emt 0:00:24]} 26. Rad1 {[%emt 0:00:27]} Rb6 {[%emt 0:05:21]} 27. f3 {[%emt 0:04:13]} Rc8 {[%emt 0:05:14]} 28. Rc1 {[%emt 0:05:34]} Na4 {[%emt 0:08:09]} 29. Rdc2 {[%emt 0:01:43]} Rbc6 {[%emt 0:02:11]} 30. c4 {[%emt 0:00:22]} Nc5 {[%emt 0:01:54]} 31. Kf1 {[%emt 0:01:43]} Rb8 {[%emt 0:02:32]} 32. Bh3 {[%emt 0:03:10]} Rcb6 {[%emt 0:15:00]} 33. Ke2 {[%emt 0:01:12]} h5 {[%emt 0:02:39]} 34. Ke3 {[%emt 0:03:22]} a5 {[%emt 0:01:10]} 35. Kd2 {[%emt 0:04:42]} Rb4 {[%emt 0:02:43]} 36. Kc3 {[%emt 0:02:50]} Ra4 {[%emt 0:02:19]} 37. Kd2 {[%emt 0:06:01]} Ra3 {[%emt 0:02:57]} 38. Ke2 {[%emt 0:01:08]} Nd3 {[%emt 0:00:57]} 39. Ra1 {[%emt 0:01:34]} Rb2 {[%emt 0:12:00]} 40. Rxb2 {[%emt 0:08:52]} Nxb2 {[%emt 0:00:06]} 41. Bc8 {[%emt 0:00:25]} Nd3 {[%emt 0:04:10]} 42. h4 {[%emt 0:06:24]} Nb4 {[%emt 0:00:41]} 43. Bb7 {[%emt 0:01:20]} Nc2 {[%emt 0:02:31]} 44. Rb1 {[%emt 0:02:18]} Nd4+ {[%emt 0:00:25]} 45. Kf1 {[%emt 0:01:07]} Rxf3+ {[%emt 0:03:24]} 46. Kg2 {[%emt 0:00:08]} Ra3 {[%emt 0:00:15]} 47. Rb2 {[%emt 0:01:14]} Rc3 {[%emt 0:00:17]} 48. Rb6 {[%emt 0:03:38]} Rc2+ {[%emt 0:00:53]} 49. Kf1 {[%emt 0:00:07]} Rxa2 {[%emt 0:00:36]} 50. Bd5 {[%emt 0:00:10]} Ne6 {[%emt 0:06:48]} 51. Rb7+ {[%emt 0:00:30]} Kf6 {[%emt 0:01:15]} 52. Rd7 {[%emt 0:01:32]} a4 {[%emt 0:09:31]} 53. Rxd6 {[%emt 0:00:45]} Ra3 {[%emt 0:01:54]} 54. Kf2 {[%emt 0:01:03]} Rc3 {[%emt 0:00:18]} 55. Ra6 {[%emt 0:01:21]} a3 {[%emt 0:00:09]} 56. c5 {[%emt 0:03:13]} Rxc5 {[%emt 0:00:07]} 57. Bxe6 {[%emt 0:00:07]} fxe6 {[%emt 0:01:09]} 58. Rxa3 {[%emt 0:00:12]} Rc4 {[%emt 0:01:49]} 59. Kf3 {[%emt 0:01:07]} g5 {[%emt 0:01:02]} 60. hxg5+ {[%emt 0:00:51]} Kxg5 {[%emt 0:00:06]} 61. Rb3 {[%emt 0:01:27]} Ra4 {[%emt 0:00:44]} 62. Rc3 {[%emt 0:00:22]} Rb4 {[%emt 0:00:26]} 63. Ra3 {[%emt 0:00:06]} 1/2-1/2

[Event "29. Klatovy A 2023"]
[Site "Klatovy"]
[Date "2023.07.08"]
[Round "8.14"]
[White "Polak, Michal 2002"]
[Black "Folkova, Martina"]
[Result "1/2-1/2"]
[ECO "C68"]
[WhiteElo "1959"]
[BlackElo "2049"]
[PlyCount "76"]
[EventDate "2023.07.01"]
[EventType "swiss"]
[EventRounds "9"]
[EventCountry "CZE"]
[TimeControl "120+30"]

1. e4 {[%emt 0:00:01]} e5 {[%emt 0:01:01]} 2. Nf3 {[%emt 0:00:08]} Nc6 {[%emt 0:00:05]} 3. Bb5 {[%emt 0:00:06]} a6 {[%emt 0:00:40]} 4. Bxc6 {[%emt 0:00:06]} dxc6 {[%emt 0:00:38]} 5. d4 {[%emt 0:00:06]} exd4 {[%emt 0:00:51]} 6. Qxd4 {[%emt 0:00:05]} Qxd4 {[%emt 0:05:26]} 7. Nxd4 {[%emt 0:00:05]} Bd7 {[%emt 0:03:08]} 8. Be3 {[%emt 0:01:07]} O-O-O {[%emt 0:00:54]} 9. Nc3 {[%emt 0:03:36]} Bb4 {[%emt 0:01:15]} 10. Nde2 {[%emt 0:01:03]} Nf6 {[%emt 0:02:20]} 11. f3 {[%emt 0:04:57]} Rhe8 {[%emt 0:02:12]} 12. Kf2 {[%emt 0:02:07]} h6 {[%emt 0:03:11]} 13. Rad1 {[%emt 0:04:45]} Bf8 {[%emt 0:07:44]} 14. Rd2 {[%emt 0:09:10]} b5 {[%emt 0:11:27]} 15. Rhd1 {[%emt 0:04:26]} g5 {[%emt 0:14:08]} 16. Ng3 {[%emt 0:07:46]} Be6 {[%emt 0:05:49]} 17. Nce2 {[%emt 0:12:29]} c5 {[%emt 0:04:07]} 18. Nc1 {[%emt 0:12:11]} c4 {[%emt 0:03:05]} 19. Rxd8+ {[%emt 0:10:17]} Rxd8 {[%emt 0:00:05]} 20. Rxd8+ {[%emt 0:00:04]} Kxd8 {[%emt 0:00:09]} 21. Bd4 {[%emt 0:01:28]} Be7 {[%emt 0:00:45]} 22. Nce2 {[%emt 0:01:39]} c5 {[%emt 0:00:49]} 23. Be5 {[%emt 0:02:47]} b4 {[%emt 0:06:47]} 24. Nf5 {[%emt 0:13:53]} Bxf5 {[%emt 0:04:18]} 25. exf5 {[%emt 0:00:04]} Nd7 {[%emt 0:01:41]} 26. Bg7 {[%emt 0:02:31]} h5 {[%emt 0:01:33]} 27. Ng3 {[%emt 0:05:29]} h4 {[%emt 0:00:48]} 28. Ne4 {[%emt 0:00:41]} f6 {[%emt 0:00:45]} 29. g4 {[%emt 0:02:53]} hxg3+ {[%emt 0:04:51]} 30. Kxg3 {[%emt 0:00:05]} Ke8 {[%emt 0:00:27]} 31. f4 {[%emt 0:00:33]} Kf7 {[%emt 0:03:13]} 32. Bh6 {[%emt 0:00:44]} g4 {[%emt 0:00:29]} 33. Kxg4 {[%emt 0:00:44]} Nb6 {[%emt 0:00:30]} 34. Bg5 {[%emt 0:05:11]} fxg5 {[%emt 0:00:45]} 35. fxg5 {[%emt 0:00:05]} Nd5 {[%emt 0:01:01]} 36. f6 {[%emt 0:05:21]} Bf8 {[%emt 0:00:41]} 37. h4 {[%emt 0:00:19]} Ke6 {[%emt 0:05:47]} 38. h5 {[%emt 0:02:21]} Ne3+ {[%emt 0:00:00]} 1/2-1/2

[Event "29. Klatovy A 2023"]
[Site "Klatovy"]
[Date "2023.07.08"]
[Round "8.15"]
[White "Filindash, Nikita"]
[Black "Zhang, Michelle 2013"]
[Result "1-0"]
[ECO "D14"]
[WhiteElo "2011"]
[BlackElo "1724"]
[PlyCount "71"]
[EventDate "2023.07.01"]
[EventType "swiss"]
[EventRounds "9"]
[EventCountry "CZE"]
[TimeControl "120+30"]

1. d4 {[%emt 0:00:02]} d5 {[%emt 0:00:34]} 2. c4 {[%emt 0:00:02]} c6 {[%emt 0:00:28]} 3. cxd5 {[%emt 0:00:02]} cxd5 {[%emt 0:00:36]} 4. Bf4 {[%emt 0:00:02]} Nc6 {[%emt 0:01:04]} 5. e3 {[%emt 0:00:02]} Bf5 {[%emt 0:07:02]} 6. Nc3 {[%emt 0:00:32]} e6 {[%emt 0:01:20]} 7. Bd3 {[%emt 0:03:15]} Bxd3 {[%emt 0:04:01]} 8. Qxd3 {[%emt 0:00:05]} Nf6 {[%emt 0:02:45]} 9. Nf3 {[%emt 0:01:38]} Bd6 {[%emt 0:02:44]} 10. Bxd6 {[%emt 0:03:38]} Qxd6 {[%emt 0:00:14]} 11. O-O {[%emt 0:00:11]} O-O {[%emt 0:00:56]} 12. Rac1 {[%emt 0:00:41]} Rac8 {[%emt 0:08:11]} 13. Rfd1 {[%emt 0:18:36]} Rfd8 {[%emt 0:07:04]} 14. a3 {[%emt 0:08:35]} h6 {[%emt 0:24:33]} 15. b4 {[%emt 0:14:55]} b6 {[%emt 0:09:01]} 16. Rc2 {[%emt 0:08:24]} e5 {[%emt 0:21:52]} 17. dxe5 {[%emt 0:15:40]} Nxe5 {[%emt 0:00:33]} 18. Nxe5 {[%emt 0:00:17]} Qxe5 {[%emt 0:00:34]} 19. h3 {[%emt 0:11:31]} Rc6 {[%emt 0:18:24]} 20. Ne4 {[%emt 0:12:51]} Rxc2 {[%emt 0:06:36]} 21. Nxf6+ {[%emt 0:00:18]} Qxf6 {[%emt 0:00:14]} 22. Qxc2 {[%emt 0:00:04]} Qe5 {[%emt 0:02:56]} 23. Rd4 {[%emt 0:02:03]} g6 {[%emt 0:01:58]} 24. Qd2 {[%emt 0:04:06]} Rc8 {[%emt 0:03:53]} 25. Rxd5 {[%emt 0:10:42]} Qa1+ {[%emt 0:02:26]} 26. Kh2 {[%emt 0:00:15]} Qxa3 {[%emt 0:00:30]} 27. Rd7 {[%emt 0:02:33]} Qa1 {[%emt 0:01:13]} 28. Rxf7 {[%emt 0:08:19]} Kxf7 {[%emt 0:01:34]} 29. Qd7+ {[%emt 0:00:01]} Kf6 {[%emt 0:00:55]} 30. Qxc8 {[%emt 0:00:06]} Qe5+ {[%emt 0:00:28]} 31. f4 {[%emt 0:00:02]} Qd6 {[%emt 0:00:48]} 32. Qh8+ {[%emt 0:01:42]} Kf7 {[%emt 0:00:29]} 33. Qh7+ {[%emt 0:00:20]} Kf6 {[%emt 0:00:16]} 34. Qxh6 {[%emt 0:02:35]} Qxb4 {[%emt 0:00:23]} 35. Qh8+ {[%emt 0:00:22]} Kf5 {[%emt 0:00:00]} 36. Qe5# {[%emt 0:00:00]} 1-0

[Event "29. Klatovy A 2023"]
[Site "Klatovy"]
[Date "2023.07.08"]
[Round "8.16"]
[White "Vana, Jan 2010"]
[Black "Martirosyan, David"]
[Result "1/2-1/2"]
[ECO "B23"]
[WhiteElo "1890"]
[BlackElo "1908"]
[PlyCount "118"]
[EventDate "2023.07.01"]
[EventType "swiss"]
[EventRounds "9"]
[EventCountry "CZE"]
[TimeControl "120+30"]

1. e4 {[%emt 0:13:50]} c5 {[%emt 0:00:11]} 2. Nc3 {[%emt 0:00:11]} d6 {[%emt 0:00:06]} 3. d4 {[%emt 0:00:04]} cxd4 {[%emt 0:00:16]} 4. Qxd4 {[%emt 0:00:04]} Bd7 {[%emt 0:02:28]} 5. b3 {[%emt 0:00:08]} Nc6 {[%emt 0:00:36]} 6. Qd2 {[%emt 0:00:04]} Nf6 {[%emt 0:01:11]} 7. Bb2 {[%emt 0:00:39]} a6 {[%emt 0:01:12]} 8. O-O-O {[%emt 0:01:14]} b5 {[%emt 0:01:29]} 9. f3 {[%emt 0:02:21]} h5 {[%emt 0:03:06]} 10. Nd5 {[%emt 0:04:04]} e6 {[%emt 0:01:37]} 11. Nxf6+ {[%emt 0:01:42]} gxf6 {[%emt 0:00:05]} 12. Kb1 {[%emt 0:00:27]} b4 {[%emt 0:03:21]} 13. Ne2 {[%emt 0:05:14]} Be7 {[%emt 0:07:30]} 14. f4 {[%emt 0:05:50]} Qc7 {[%emt 0:13:58]} 15. Nd4 {[%emt 0:20:57]} Nxd4 {[%emt 0:01:50]} 16. Bxd4 {[%emt 0:02:15]} a5 {[%emt 0:02:00]} 17. e5 {[%emt 0:03:24]} fxe5 {[%emt 0:05:26]} 18. fxe5 {[%emt 0:01:09]} dxe5 {[%emt 0:03:21]} 19. Bxe5 {[%emt 0:03:26]} Qxe5 {[%emt 0:01:20]} 20. Qxd7+ {[%emt 0:00:14]} Kf8 {[%emt 0:00:04]} 21. Qd4 {[%emt 0:04:38]} Qxd4 {[%emt 0:15:32]} 22. Rxd4 {[%emt 0:00:06]} Ra7 {[%emt 0:01:55]} 23. Be2 {[%emt 0:01:40]} Bf6 {[%emt 0:02:01]} 24. Rf4 {[%emt 0:04:38]} Ke7 {[%emt 0:02:29]} 25. Rhf1 {[%emt 0:00:57]} Rh6 {[%emt 0:01:33]} 26. Bxh5 {[%emt 0:00:51]} e5 {[%emt 0:00:29]} 27. Rf5 {[%emt 0:00:45]} Rd7 {[%emt 0:00:40]} 28. g4 {[%emt 0:04:16]} Ke6 {[%emt 0:06:35]} 29. g5 {[%emt 0:19:25]} Rxh5 {[%emt 0:00:06]} 30. Rxf6+ {[%emt 0:00:05]} Ke7 {[%emt 0:00:07]} 31. Rxf7+ {[%emt 0:00:03]} Kd8 {[%emt 0:00:07]} 32. Rxd7+ {[%emt 0:00:05]} Kxd7 {[%emt 0:00:12]} 33. Rg1 {[%emt 0:00:23]} Rxh2 {[%emt 0:01:28]} 34. g6 {[%emt 0:00:04]} Rh8 {[%emt 0:00:10]} 35. g7 {[%emt 0:00:07]} Rg8 {[%emt 0:00:04]} 36. c4 {[%emt 0:00:19]} bxc3 {[%emt 0:15:08]} 37. Kc2 {[%emt 0:00:30]} Ke6 {[%emt 0:02:17]} 38. Kxc3 {[%emt 0:05:08]} Kf7 {[%emt 0:01:15]} 39. b4 {[%emt 0:12:35]} axb4+ {[%emt 0:01:50]} 40. Kxb4 {[%emt 0:01:15]} Rb8+ {[%emt 0:00:15]} 41. Kc5 {[%emt 0:02:46]} Kg8 {[%emt 0:00:22]} 42. a4 {[%emt 0:01:15]} e4 {[%emt 0:02:04]} 43. Re1 {[%emt 0:05:56]} Re8 {[%emt 0:01:54]} 44. Kd4 {[%emt 0:03:57]} Ra8 {[%emt 0:00:20]} 45. Ra1 {[%emt 0:00:07]} Re8 {[%emt 0:02:32]} 46. Ra3 {[%emt 0:00:13]} Kxg7 {[%emt 0:01:05]} 47. a5 {[%emt 0:01:46]} Kf6 {[%emt 0:00:49]} 48. a6 {[%emt 0:00:54]} Kf5 {[%emt 0:00:43]} 49. a7 {[%emt 0:00:28]} Ra8 {[%emt 0:00:03]} 50. Ra6 {[%emt 0:00:22]} e3 {[%emt 0:01:26]} 51. Kxe3 {[%emt 0:02:28]} Ke5 {[%emt 0:00:09]} 52. Ra5+ {[%emt 0:00:31]} Kd6 {[%emt 0:00:17]} 53. Kd4 {[%emt 0:00:05]} Kc6 {[%emt 0:00:22]} 54. Kc4 {[%emt 0:00:22]} Kb6 {[%emt 0:00:18]} 55. Rb5+ {[%emt 0:00:12]} Kxa7 {[%emt 0:00:10]} 56. Kc5 {[%emt 0:00:14]} Rc8+ {[%emt 0:00:26]} 57. Kd6 {[%emt 0:00:06]} Ka6 {[%emt 0:00:25]} 58. Rb1 {[%emt 0:00:00]} Rc2 {[%emt 0:00:41]} 59. Rb3 {[%emt 0:00:08]} Rc1 {[%emt 0:00:20]} 1/2-1/2

[Event "29. Klatovy A 2023"]
[Site "Klatovy"]
[Date "2023.07.08"]
[Round "8.17"]
[White "Mametev, Artem"]
[Black "Stary, Vojtech"]
[Result "1-0"]
[ECO "B06"]
[WhiteElo "1991"]
[BlackElo "1822"]
[PlyCount "45"]
[EventDate "2023.07.01"]
[EventType "swiss"]
[EventRounds "9"]
[EventCountry "CZE"]
[TimeControl "120+30"]

1. e4 {[%emt 0:00:01]} g6 {[%emt 0:00:09]} 2. d4 {[%emt 0:00:10]} Nf6 {[%emt 0:00:09]} 3. e5 {[%emt 0:01:43]} Nh5 {[%emt 0:00:11]} 4. Be2 {[%emt 0:03:59]} Ng7 {[%emt 0:00:11]} 5. Nf3 {[%emt 0:00:15]} d5 {[%emt 0:02:02]} 6. O-O {[%emt 0:04:36]} Bg4 {[%emt 0:02:03]} 7. c4 {[%emt 0:01:38]} c6 {[%emt 0:04:54]} 8. cxd5 {[%emt 0:01:08]} cxd5 {[%emt 0:02:14]} 9. Nc3 {[%emt 0:00:46]} e6 {[%emt 0:01:19]} 10. Qb3 {[%emt 0:08:08]} Qd7 {[%emt 0:05:42]} 11. Bg5 {[%emt 0:09:20]} Bxf3 {[%emt 0:01:31]} 12. Bxf3 {[%emt 0:00:04]} Nc6 {[%emt 0:02:23]} 13. Rfd1 {[%emt 0:04:49]} Nf5 {[%emt 0:04:18]} 14. Bxd5 {[%emt 0:08:54]} Na5 {[%emt 0:06:59]} 15. Ne4 {[%emt 0:10:29]} Be7 {[%emt 0:17:06]} 16. Qc3 {[%emt 0:26:44]} Qxd5 {[%emt 0:08:20]} 17. Bxe7 {[%emt 0:00:18]} Qxe4 {[%emt 0:16:17]} 18. Bf6 {[%emt 0:00:09]} O-O {[%emt 0:00:50]} 19. Qxa5 {[%emt 0:00:09]} Nxd4 {[%emt 0:01:09]} 20. Qd2 {[%emt 0:07:29]} Ne2+ {[%emt 0:02:04]} 21. Kh1 {[%emt 0:01:38]} Nf4 {[%emt 0:01:30]} 22. f3 {[%emt 0:01:05]} Qa4 {[%emt 0:06:46]} 23. b3 {[%emt 0:00:30]} 1-0

[Event "29. Klatovy A 2023"]
[Site "Klatovy"]
[Date "2023.07.08"]
[Round "8.18"]
[White "Flajsman, Petr"]
[Black "Andrle, Filip"]
[Result "1-0"]
[ECO "B26"]
[WhiteElo "1956"]
[BlackElo "1692"]
[PlyCount "83"]
[EventDate "2023.07.01"]
[EventType "swiss"]
[EventRounds "9"]
[EventCountry "CZE"]
[TimeControl "120+30"]

1. e4 {[%emt 0:00:20]} c5 {[%emt 0:00:10]} 2. Nc3 {[%emt 0:00:22]} Nc6 {[%emt 0:00:11]} 3. g3 {[%emt 0:00:35]} g6 {[%emt 0:00:28]} 4. Bg2 {[%emt 0:00:09]} Bg7 {[%emt 0:00:42]} 5. Nge2 {[%emt 0:00:32]} e6 {[%emt 0:00:50]} 6. d3 {[%emt 0:00:08]} d6 {[%emt 0:01:53]} 7. O-O {[%emt 0:00:01]} Nge7 {[%emt 0:00:25]} 8. Be3 {[%emt 0:00:52]} Rb8 {[%emt 0:02:07]} 9. d4 {[%emt 0:00:57]} cxd4 {[%emt 0:01:55]} 10. Nxd4 {[%emt 0:00:21]} a6 {[%emt 0:00:46]} 11. a4 {[%emt 0:01:49]} O-O {[%emt 0:00:50]} 12. Re1 {[%emt 0:04:22]} Qc7 {[%emt 0:01:41]} 13. f4 {[%emt 0:14:22]} Bd7 {[%emt 0:08:58]} 14. Nb3 {[%emt 0:07:41]} b5 {[%emt 0:07:25]} 15. axb5 {[%emt 0:03:58]} axb5 {[%emt 0:00:24]} 16. Bf1 {[%emt 0:00:15]} Nb4 {[%emt 0:12:50]} 17. Ra7 {[%emt 0:03:32]} Rb7 {[%emt 0:01:15]} 18. Rxb7 {[%emt 0:07:43]} Qxb7 {[%emt 0:00:20]} 19. Qxd6 {[%emt 0:03:07]} Nxc2 {[%emt 0:03:35]} 20. Nc5 {[%emt 0:07:27]} Nc8 {[%emt 0:09:42]} 21. Qxf8+ {[%emt 0:13:00]} Kxf8 {[%emt 0:00:44]} 22. Nxb7 {[%emt 0:00:09]} Nxe1 {[%emt 0:00:14]} 23. Bc5+ {[%emt 0:00:51]} Kg8 {[%emt 0:01:25]} 24. e5 {[%emt 0:06:46]} Nf3+ {[%emt 0:02:51]} 25. Kf2 {[%emt 0:00:55]} Nd2 {[%emt 0:00:54]} 26. Bxb5 {[%emt 0:00:37]} Bxb5 {[%emt 0:00:44]} 27. Nxb5 {[%emt 0:00:02]} Ne4+ {[%emt 0:00:24]} 28. Ke3 {[%emt 0:00:15]} Nxc5 {[%emt 0:00:08]} 29. Nxc5 {[%emt 0:00:05]} Kf8 {[%emt 0:00:44]} 30. Nc3 {[%emt 0:02:41]} Ke8 {[%emt 0:01:57]} 31. N3e4 {[%emt 0:01:28]} h6 {[%emt 0:01:47]} 32. Kd4 {[%emt 0:00:33]} Kd8 {[%emt 0:00:43]} 33. Nb7+ {[%emt 0:02:03]} Kd7 {[%emt 0:01:00]} 34. Nbd6 {[%emt 0:06:43]} Nxd6 {[%emt 0:00:45]} 35. Nxd6 {[%emt 0:00:06]} f6 {[%emt 0:00:11]} 36. Ne4 {[%emt 0:00:13]} fxe5+ {[%emt 0:01:26]} 37. fxe5 {[%emt 0:00:02]} h5 {[%emt 0:00:39]} 38. Nc5+ {[%emt 0:00:43]} Ke7 {[%emt 0:00:08]} 39. b4 {[%emt 0:00:35]} Bh6 {[%emt 0:00:56]} 40. b5 {[%emt 0:00:37]} Bd2 {[%emt 0:00:17]} 41. b6 {[%emt 0:00:47]} Ba5 {[%emt 0:00:26]} 42. b7 {[%emt 0:00:08]} 1-0

[Event "29. Klatovy A 2023"]
[Site "Klatovy"]
[Date "2023.07.09"]
[Round "9.1"]
[White "Hurdzan, Tomas"]
[Black "Straka, Vojtech"]
[Result "1-0"]
[ECO "D33"]
[WhiteElo "2309"]
[BlackElo "2433"]
[PlyCount "113"]
[EventDate "2023.07.01"]
[EventType "swiss"]
[EventRounds "9"]
[EventCountry "CZE"]
[TimeControl "120+30"]

1. c4 {[%emt 0:00:08]} c5 {[%emt 0:05:41]} 2. Nf3 {[%emt 0:00:31]} Nf6 {[%emt 0:00:44]} 3. Nc3 {[%emt 0:00:50]} e6 {[%emt 0:01:48]} 4. g3 {[%emt 0:02:24]} d5 {[%emt 0:09:02]} 5. cxd5 {[%emt 0:00:07]} exd5 {[%emt 0:00:05]} 6. d4 {[%emt 0:00:09]} cxd4 {[%emt 0:01:46]} 7. Nxd4 {[%emt 0:00:17]} Bc5 {[%emt 0:00:07]} 8. Bg2 {[%emt 0:02:02]} Nc6 {[%emt 0:20:48]} 9. Nb3 {[%emt 0:01:03]} Bb6 {[%emt 0:00:07]} 10. O-O {[%emt 0:05:43]} d4 {[%emt 0:01:23]} 11. Na4 {[%emt 0:01:29]} O-O {[%emt 0:01:02]} 12. Bg5 {[%emt 0:05:03]} h6 {[%emt 0:00:30]} 13. Bxf6 {[%emt 0:00:16]} Qxf6 {[%emt 0:00:02]} 14. Nxb6 {[%emt 0:01:47]} axb6 {[%emt 0:00:31]} 15. Bxc6 {[%emt 0:00:23]} bxc6 {[%emt 0:00:06]} 16. Qxd4 {[%emt 0:00:11]} Qd8 {[%emt 0:00:07]} 17. Rfd1 {[%emt 0:13:48]} Be6 {[%emt 0:07:38]} 18. Qxd8 {[%emt 0:01:06]} Rfxd8 {[%emt 0:00:07]} 19. Rxd8+ {[%emt 0:02:23]} Rxd8 {[%emt 0:00:02]} 20. Kf1 {[%emt 0:01:15]} Bxb3 {[%emt 0:18:38]} 21. axb3 {[%emt 0:00:06]} Rd2 {[%emt 0:00:06]} 22. Rb1 {[%emt 0:09:38]} Rd4 {[%emt 0:14:04]} 23. Rc1 {[%emt 0:01:00]} c5 {[%emt 0:00:06]} 24. Ke1 {[%emt 0:01:06]} Kf8 {[%emt 0:09:45]} 25. Rc4 {[%emt 0:14:04]} Rd5 {[%emt 0:00:24]} 26. b4 {[%emt 0:01:14]} Ke7 {[%emt 0:00:26]} 27. bxc5 {[%emt 0:13:08]} bxc5 {[%emt 0:00:15]} 28. Rc3 {[%emt 0:02:57]} Rh5 {[%emt 0:05:23]} 29. h4 {[%emt 0:03:53]} Kd6 {[%emt 0:01:17]} 30. Rf3 {[%emt 0:02:28]} Ke6 {[%emt 0:00:24]} 31. Kd2 {[%emt 0:00:31]} g5 {[%emt 0:01:34]} 32. hxg5 {[%emt 0:00:29]} hxg5 {[%emt 0:03:46]} 33. Kc3 {[%emt 0:21:16]} Rh1 {[%emt 0:09:03]} 34. Kc4 {[%emt 0:00:05]} Rb1 {[%emt 0:00:06]} 35. b3 {[%emt 0:00:56]} Rc1+ {[%emt 0:00:08]} 36. Rc3 {[%emt 0:00:06]} Rf1 {[%emt 0:00:06]} 37. Kxc5 {[%emt 0:04:41]} Rxf2 {[%emt 0:00:17]} 38. Re3+ {[%emt 0:00:36]} Kd7 {[%emt 0:00:13]} 39. Kb6 {[%emt 0:03:26]} f5 {[%emt 0:08:35]} 40. b4 {[%emt 0:00:17]} f4 {[%emt 0:00:06]} 41. gxf4 {[%emt 0:00:35]} Rxf4 {[%emt 0:00:07]} 42. b5 {[%emt 0:00:30]} g4 {[%emt 0:00:07]} 43. Kb7 {[%emt 0:03:23]} Kd6 {[%emt 0:00:15]} 44. b6 {[%emt 0:01:53]} Kd5 {[%emt 0:01:21]} 45. Re7 {[%emt 0:03:04]} Re4 {[%emt 0:01:29]} 46. Rg7 {[%emt 0:01:09]} Ke6 {[%emt 0:00:07]} 47. Ka6 {[%emt 0:01:46]} Kf6 {[%emt 0:00:22]} 48. Rg8 {[%emt 0:00:10]} Kf7 {[%emt 0:02:15]} 49. b7 {[%emt 0:00:56]} Re6+ {[%emt 0:00:49]} 50. Kb5 {[%emt 0:01:21]} Kxg8 {[%emt 0:01:06]} 51. b8=Q+ {[%emt 0:00:06]} Kg7 {[%emt 0:00:07]} 52. Qf4 {[%emt 0:01:01]} Rg6 {[%emt 0:00:20]} 53. Qg3 {[%emt 0:00:06]} Kf6 {[%emt 0:00:43]} 54. Kc4 {[%emt 0:00:31]} Kf5 {[%emt 0:00:26]} 55. Kd5 {[%emt 0:00:29]} Rh6 {[%emt 0:00:21]} 56. e4+ {[%emt 0:00:20]} Kg5 {[%emt 0:00:14]} 57. Qe3+ {[%emt 0:01:10]} 1-0

[Event "29. Klatovy A 2023"]
[Site "Klatovy"]
[Date "2023.07.09"]
[Round "9.3"]
[White "Slovak, Kilian"]
[Black "Soural, Jan"]
[Result "1-0"]
[ECO "B38"]
[WhiteElo "2297"]
[BlackElo "2176"]
[PlyCount "69"]
[EventDate "2023.07.01"]
[EventType "swiss"]
[EventRounds "9"]
[EventCountry "CZE"]
[TimeControl "120+30"]

1. e4 {[%emt 0:02:36]} c5 {[%emt 0:00:09]} 2. Nf3 {[%emt 0:00:08]} Nc6 {[%emt 0:00:07]} 3. d4 {[%emt 0:00:10]} cxd4 {[%emt 0:00:07]} 4. Nxd4 {[%emt 0:00:09]} g6 {[%emt 0:00:14]} 5. c4 {[%emt 0:00:22]} Bg7 {[%emt 0:01:07]} 6. Be3 {[%emt 0:00:13]} Nf6 {[%emt 0:00:12]} 7. Nc3 {[%emt 0:00:09]} d6 {[%emt 0:00:56]} 8. Be2 {[%emt 0:00:24]} O-O {[%emt 0:00:19]} 9. O-O {[%emt 0:00:16]} Bd7 {[%emt 0:01:04]} 10. Qd2 {[%emt 0:00:56]} Nxd4 {[%emt 0:00:46]} 11. Bxd4 {[%emt 0:00:08]} Bc6 {[%emt 0:00:05]} 12. f3 {[%emt 0:00:12]} a5 {[%emt 0:00:07]} 13. b3 {[%emt 0:00:12]} Nd7 {[%emt 0:00:32]} 14. Be3 {[%emt 0:00:13]} Nc5 {[%emt 0:00:31]} 15. Rab1 {[%emt 0:00:44]} Qb6 {[%emt 0:03:26]} 16. Rfc1 {[%emt 0:01:36]} Rfc8 {[%emt 0:00:09]} 17. Rc2 {[%emt 0:02:07]} h5 {[%emt 0:02:58]} 18. Bf1 {[%emt 0:03:47]} Kh7 {[%emt 0:11:34]} 19. Nd5 {[%emt 0:01:25]} Qd8 {[%emt 0:15:22]} 20. Bg5 {[%emt 0:01:37]} Bxd5 {[%emt 0:21:56]} 21. exd5 {[%emt 0:00:32]} Rc7 {[%emt 0:04:30]} 22. Be3 {[%emt 0:06:44]} Qh8 {[%emt 0:01:58]} 23. Qf2 {[%emt 0:16:04]} Rcc8 {[%emt 0:17:09]} 24. a3 {[%emt 0:03:03]} a4 {[%emt 0:13:35]} 25. b4 {[%emt 0:00:30]} Nb3 {[%emt 0:00:04]} 26. Rd1 {[%emt 0:00:41]} Rc7 {[%emt 0:01:38]} 27. Kh1 {[%emt 0:04:49]} Rac8 {[%emt 0:14:30]} 28. Bb6 {[%emt 0:01:01]} Na1 {[%emt 0:00:25]} 29. Ra2 {[%emt 0:01:51]} Nb3 {[%emt 0:06:31]} 30. Bxc7 {[%emt 0:03:11]} Rxc7 {[%emt 0:00:05]} 31. Bd3 {[%emt 0:07:52]} b5 {[%emt 0:04:30]} 32. cxb5 {[%emt 0:08:12]} Bd4 {[%emt 0:03:12]} 33. Qh4 {[%emt 0:06:15]} Qc8 {[%emt 0:00:06]} 34. Re2 {[%emt 0:08:20]} Nc1 {[%emt 0:03:07]} 35. Qxd4 {[%emt 0:00:43]} 1-0

[Event "29. Klatovy A 2023"]
[Site "Klatovy"]
[Date "2023.07.09"]
[Round "9.4"]
[White "Vorisek, Jaroslav"]
[Black "Jurek, Josef"]
[Result "1/2-1/2"]
[ECO "E01"]
[WhiteElo "2260"]
[BlackElo "2251"]
[PlyCount "27"]
[EventDate "2023.07.01"]
[EventType "swiss"]
[EventRounds "9"]
[EventCountry "CZE"]
[TimeControl "120+30"]

1. d4 {[%emt 0:00:05]} Nf6 {[%emt 0:00:16]} 2. c4 {[%emt 0:00:14]} e6 {[%emt 0:00:16]} 3. g3 {[%emt 0:00:25]} c5 {[%emt 0:00:12]} 4. Nf3 {[%emt 0:01:07]} cxd4 {[%emt 0:00:18]} 5. Nxd4 {[%emt 0:03:21]} d5 {[%emt 0:00:18]} 6. Bg2 {[%emt 0:01:56]} e5 {[%emt 0:00:19]} 7. Nb5 {[%emt 0:03:46]} d4 {[%emt 0:05:02]} 8. O-O {[%emt 0:20:29]} Nc6 {[%emt 0:08:01]} 9. e3 {[%emt 0:05:13]} a6 {[%emt 0:02:26]} 10. N5a3 {[%emt 0:00:05]} Bc5 {[%emt 0:11:27]} 11. exd4 {[%emt 0:04:22]} exd4 {[%emt 0:00:17]} 12. Nd2 {[%emt 0:12:48]} O-O {[%emt 0:06:01]} 13. Ne4 {[%emt 0:02:21]} Nxe4 {[%emt 0:04:33]} 14. Bxe4 {[%emt 0:00:07]} 1/2-1/2